Workbook

Sheet 1组
A1: 职位代码 | B1: 准考证号 | C1: 抽签号 | D1: 行测成绩 | E1: 申论成绩 | F1: 专业成绩 | G1: 笔试成绩 | H1: 面试成绩 | I1: 合成成绩
A2: 090143 | B2: 092000306805 | C2: 1 | D2: 64.3 | E2: 70 | F2: 0 | G2: 67.15 | H2: 76.40 | I2: =G2*60%+H2*40% -> 70.85
A3: 090143 | B3: 092000306910 | C3: 2 | D3: 61.5 | E3: 59.5 | F3: 0 | G3: 60.5 | H3: 0.00 | I3: =G3*60%+H3*40% -> 36.30
A4: 090143 | B4: 092000306723 | C4: 3 | D4: 66.2 | E4: 66 | F4: 0 | G4: 66.1 | H4: 73.80 | I4: 69.18
A5: 090143 | B5: 092000306902 | C5: 4 | D5: 61.4 | E5: 67.5 | F5: 0 | G5: 64.45 | H5: 77.40 | I5: 69.63
A6: 090143 | B6: 092000306909 | C6: 5 | D6: 66 | E6: 60.5 | F6: 0 | G6: 63.25 | H6: 71.60 | I6: 66.59
A7: 090143 | B7: 092000306904 | C7: 6 | D7: 59.9 | E7: 56 | F7: 0 | G7: 57.95 | H7: 72.00 | I7: 63.57
A8: 090143 | B8: 092000306818 | C8: 7 | D8: 67.4 | E8: 64.5 | F8: 0 | G8: 65.95 | H8: 74.00 | I8: 69.17
A9: 090143 | B9: 092000306917 | C9: 8 | D9: 53.6 | E9: 61 | F9: 0 | G9: 57.3 | H9: 72.60 | I9: 63.42
A10: 090143 | B10: 092000306722 | C10: 9 | D10: 60.9 | E10: 62.5 | F10: 0 | G10: 61.7 | H10: 72.80 | I10: 66.14
A11: 090143 | B11: 092000306823 | C11: 10 | D11: 59.1 | E11: 68 | F11: 0 | G11: 63.55 | H11: 70.80 | I11: 66.45
A12: 090143 | B12: 092000306817 | C12: 11 | D12: 53 | E12: 63 | F12: 0 | G12: 58 | H12: 73.80 | I12: 64.32
A13: 090143 | B13: 092000306821 | C13: 12 | D13: 69.7 | E13: 67.5 | F13: 0 | G13: 68.6 | H13: 73.00 | I13: 70.36
A14: 090143 | B14: 092000306819 | C14: 13 | D14: 67.6 | E14: 48 | F14: 0 | G14: 57.8 | H14: 0.00 | I14: 34.68
A15: 090143 | B15: 092000306724 | C15: 14 | D15: 69.5 | E15: 62.5 | F15: 0 | G15: 66 | H15: 78.00 | I15: 70.80
A16: 090143 | B16: 092000306824 | C16: 15 | D16: 67.5 | E16: 64 | F16: 0 | G16: 65.75 | H16: 75.00 | I16: 69.45
A17: 090143 | B17: 092000306922 | C17: 16 | D17: 61 | E17: 62.5 | F17: 0 | G17: 61.75 | H17: 76.20 | I17: 67.53
A18: 090143 | B18: 092000306802 | C18: 17 | D18: 55.2 | E18: 71.5 | F18: 0 | G18: 63.35 | H18: 71.60 | I18: 66.65
A19: 090143 | B19: 092000306903 | C19: 18 | D19: 52.7 | E19: 62 | F19: 0 | G19: 57.35 | H19: 69.60 | I19: 62.25

Sheet 2组
A1: 职位代码 | B1: 准考证号 | C1: 抽签号 | D1: 行测成绩 | E1: 申论成绩 | F1: 专业成绩 | G1: 笔试成绩 | H1: 面试成绩 | I1: 合成成绩
A2: 090147 | B2: 092000403311 | C2: 19 | D2: 64.1 | E2: 61 | F2: 0 | G2: 62.55 | H2: 74.80 | I2: =G2*60%+H2*40% -> 67.45
A3: 090147 | B3: 092000403310 | C3: 20 | D3: 61.7 | E3: 63 | F3: 0 | G3: 62.35 | H3: 64.00 | I3: =G3*60%+H3*40% -> 63.01
A4: 090147 | B4: 092000403514 | C4: 21 | D4: 61.1 | E4: 63 | F4: 0 | G4: 62.05 | H4: 77.40 | I4: 68.19
A5: 090147 | B5: 092000403322 | C5: 22 | D5: 61.5 | E5: 60 | F5: 0 | G5: 60.75 | H5: 77.00 | I5: 67.25
A6: 090147 | B6: 092000403528 | C6: 23 | D6: 66.4 | E6: 60.5 | F6: 0 | G6: 63.45 | H6: 79.00 | I6: 69.67
A7: 090147 | B7: 092000403428 | C7: 24 | D7: 63 | E7: 69.5 | F7: 0 | G7: 66.25 | H7: 76.40 | I7: 70.31
A8: 090147 | B8: 092000403408 | C8: 25 | D8: 63.7 | E8: 61 | F8: 0 | G8: 62.35 | H8: 77.00 | I8: 68.21
A9: 090147 | B9: 092000403617 | C9: 26 | D9: 63.4 | E9: 69 | F9: 0 | G9: 66.2 | H9: 78.60 | I9: 71.16
A10: 090147 | B10: 092000403326 | C10: 27 | D10: 62.2 | E10: 60 | F10: 0 | G10: 61.1 | H10: 76.40 | I10: 67.22
A11: 090147 | B11: 092000403602 | C11: 28 | D11: 61.9 | E11: 61 | F11: 0 | G11: 61.45 | H11: 76.20 | I11: 67.35
A12: 090147 | B12: 092000403502 | C12: 29 | D12: 60.1 | E12: 67.5 | F12: 0 | G12: 63.8 | H12: 74.40 | I12: 68.04
A13: 090147 | B13: 092000403520 | C13: 30 | D13: 65.4 | E13: 61 | F13: 0 | G13: 63.2 | H13: 75.00 | I13: 67.92
A14: 090147 | B14: 092000403307 | C14: 31 | D14: 61.6 | E14: 61 | F14: 0 | G14: 61.3 | H14: 78.00 | I14: 67.98
A15: 090147 | B15: 092000403522 | C15: 32 | D15: 65.2 | E15: 60 | F15: 0 | G15: 62.6 | H15: 74.40 | I15: 67.32
A16: 090147 | B16: 092000403303 | C16: 33 | D16: 75.3 | E16: 64.5 | F16: 0 | G16: 69.9 | H16: 75.60 | I16: 72.18
A17: 090147 | B17: 092000403519 | C17: 34 | D17: 53.4 | E17: 68.5 | F17: 0 | G17: 60.95 | H17: 72.00 | I17: 65.37
A18: 090147 | B18: 092000403504 | C18: 35 | D18: 58.7 | E18: 62 | F18: 0 | G18: 60.35 | H18: 76.00 | I18: 66.61
A19: 090147 | B19: 092000403418 | C19: 36 | D19: 67.9 | E19: 72.5 | F19: 0 | G19: 70.2 | H19: 80.60 | I19: 74.36

Sheet 3组
A1: 职位代码 | B1: 准考证号 | C1: 抽签号 | D1: 行测成绩 | E1: 申论成绩 | F1: 专业成绩 | G1: 笔试成绩 | H1: 面试成绩 | I1: 合成成绩
A2: 090150 | B2: 092000500418 | C2: 37 | D2: 70.3 | E2: 59.5 | F2: 0 | G2: 64.9 | H2: 79.00 | I2: =G2*60%+H2*40% -> 70.54
A3: 090150 | B3: 092000500211 | C3: 38 | D3: 71.9 | E3: 57.5 | F3: 0 | G3: 64.7 | H3: 80.80 | I3: =G3*60%+H3*40% -> 71.14
A4: 090150 | B4: 092000404918 | C4: 39 | D4: 63.4 | E4: 68 | F4: 0 | G4: 65.7 | H4: 77.80 | I4: 70.54
A5: 090150 | B5: 092000500129 | C5: 40 | D5: 65.1 | E5: 62.5 | F5: 0 | G5: 63.8 | H5: 76.40 | I5: 68.84
A6: 090150 | B6: 092000500313 | C6: 41 | D6: 61.3 | E6: 72 | F6: 0 | G6: 66.65 | H6: 74.20 | I6: 69.67
A7: 090150 | B7: 092000404923 | C7: 42 | D7: 62.9 | E7: 65.5 | F7: 0 | G7: 64.2 | H7: 71.20 | I7: 67.00
A8: 090150 | B8: 092000500322 | C8: 43 | D8: 74.7 | E8: 56.5 | F8: 0 | G8: 65.6 | H8: 76.20 | I8: 69.84
A9: 090150 | B9: 092000500210 | C9: 44 | D9: 69.7 | E9: 65 | F9: 0 | G9: 67.35 | H9: 76.60 | I9: 71.05
A10: 090150 | B10: 092000500625 | C10: 45 | D10: 61.7 | E10: 79 | F10: 0 | G10: 70.35 | H10: 76.00 | I10: 72.61
A11: 090150 | B11: 092000500324 | C11: 46 | D11: 78 | E11: 50 | F11: 0 | G11: 64 | H11: 72.20 | I11: 67.28
A12: 090150 | B12: 092000500611 | C12: 47 | D12: 64 | E12: 63 | F12: 0 | G12: 63.5 | H12: 72.40 | I12: 67.06
A13: 090150 | B13: 092000500117 | C13: 48 | D13: 64 | E13: 63.5 | F13: 0 | G13: 63.75 | H13: 78.40 | I13: 69.61
A14: 090150 | B14: 092000500601 | C14: 49 | D14: 66.1 | E14: 61.5 | F14: 0 | G14: 63.8 | H14: 69.60 | I14: 66.12
A15: 090150 | B15: 092000500517 | C15: 50 | D15: 55.3 | E15: 71 | F15: 0 | G15: 63.15 | H15: 71.60 | I15: 66.53
A16: 090150 | B16: 092000500509 | C16: 51 | D16: 67.8 | E16: 66.5 | F16: 0 | G16: 67.15 | H16: 79.00 | I16: 71.89

Sheet 4组
A1: 职位代码 | B1: 准考证号 | C1: 抽签号 | D1: 行测成绩 | E1: 申论成绩 | F1: 专业成绩 | G1: 笔试成绩 | H1: 面试成绩 | I1: 合成成绩
A2: 090151 | B2: 092000500809 | C2: 52 | D2: 57.8 | E2: 65 | F2: 0 | G2: 61.4 | H2: 0.00 | I2: =G2*60%+H2*40% -> 36.84
A3: 090151 | B3: 092000500811 | C3: 53 | D3: 62.2 | E3: 60.5 | F3: 0 | G3: 61.35 | H3: 77.80 | I3: =G3*60%+H3*40% -> 67.93
A4: 090151 | B4: 092000500801 | C4: 54 | D4: 68.8 | E4: 63.5 | F4: 0 | G4: 66.15 | H4: 78.60 | I4: =G4*60%+H4*40% -> 71.13
A5: 090151 | B5: 092000500818 | C5: 55 | D5: 57.6 | E5: 66 | F5: 0 | G5: 61.8 | H5: 73.60 | I5: 66.52
A6: 090151 | B6: 092000500727 | C6: 56 | D6: 62.6 | E6: 63.5 | F6: 0 | G6: 63.05 | H6: 82.20 | I6: 70.71
A7: 090151 | B7: 092000500730 | C7: 57 | D7: 60.6 | E7: 63.5 | F7: 0 | G7: 62.05 | H7: 76.40 | I7: 67.79
A8: 090151 | B8: 092000500716 | C8: 58 | D8: 58.8 | E8: 68 | F8: 0 | G8: 63.4 | H8: 77.40 | I8: 69.00
A9: 090151 | B9: 092000500717 | C9: 59 | D9: 55.8 | E9: 66 | F9: 0 | G9: 60.9 | H9: 74.40 | I9: 66.30
A10: 090151 | B10: 092000500816 | C10: 60 | D10: 63.7 | E10: 60.5 | F10: 0 | G10: 62.1 | H10: 75.60 | I10: 67.50
A11: 090151 | B11: 092000500808 | C11: 61 | D11: 62.7 | E11: 69 | F11: 0 | G11: 65.85 | H11: 79.20 | I11: 71.19
A12: 090151 | B12: 092000500712 | C12: 62 | D12: 58.4 | E12: 69.5 | F12: 0 | G12: 63.95 | H12: 75.80 | I12: 68.69
A13: 090151 | B13: 092000500806 | C13: 63 | D13: 63.2 | E13: 63 | F13: 0 | G13: 63.1 | H13: 75.80 | I13: 68.18
A14: 090151 | B14: 092000500803 | C14: 64 | D14: 65.1 | E14: 64.5 | F14: 0 | G14: 64.8 | H14: 76.80 | I14: 69.60
A15: 090151 | B15: 092000500810 | C15: 65 | D15: 59.3 | E15: 65 | F15: 0 | G15: 62.15 | H15: 79.00 | I15: 68.89
A16: 090151 | B16: 092000500728 | C16: 66 | D16: 53.7 | E16: 68 | F16: 0 | G16: 60.85 | H16: 76.60 | I16: 67.15
A17: 090151 | B17: 092000500711 | C17: 67 | D17: 69 | E17: 63.5 | F17: 0 | G17: 66.25 | H17: 74.00 | I17: 69.35
A18: 090151 | B18: 092000500713 | C18: 68 | D18: 63.4 | E18: 69 | F18: 0 | G18: 66.2 | H18: 78.80 | I18: 71.24
A19: 090151 | B19: 092000500715 | C19: 69 | D19: 63.6 | E19: 58 | F19: 0 | G19: 60.8 | H19: 77.60 | I19: 67.52

Sheet 5组
A1: 职位代码 | B1: 准考证号 | C1: 抽签号 | D1: 行测成绩 | E1: 申论成绩 | F1: 专业成绩 | G1: 笔试成绩 | H1: 面试成绩 | I1: 合成成绩
A2: 090154 | B2: 092000502202 | C2: 70 | D2: 55.6 | E2: 72 | F2: 0 | G2: 63.8 | H2: 0.00 | I2: =G2*60%+H2*40% -> 38.28
A3: 090154 | B3: 092000502609 | C3: 71 | D3: 63.8 | E3: 63 | F3: 0 | G3: 63.4 | H3: 81.60 | I3: =G3*60%+H3*40% -> 70.68
A4: 090154 | B4: 092000502605 | C4: 72 | D4: 64.8 | E4: 61.5 | F4: 0 | G4: 63.15 | H4: 73.80 | I4: =G4*60%+H4*40% -> 67.41
A5: 090154 | B5: 092000502524 | C5: 73 | D5: 63.2 | E5: 65 | F5: 0 | G5: 64.1 | H5: 76.00 | I5: 68.86
A6: 090154 | B6: 092000502326 | C6: 74 | D6: 61.3 | E6: 69 | F6: 0 | G6: 65.15 | H6: 78.60 | I6: 70.53
A7: 090154 | B7: 092000502317 | C7: 75 | D7: 67.2 | E7: 60 | F7: 0 | G7: 63.6 | H7: 75.80 | I7: 68.48
A8: 090154 | B8: 092000502405 | C8: 76 | D8: 71.5 | E8: 60 | F8: 0 | G8: 65.75 | H8: 81.20 | I8: 71.93
A9: 090154 | B9: 092000502603 | C9: 77 | D9: 68.4 | E9: 67 | F9: 0 | G9: 67.7 | H9: 78.20 | I9: 71.90
A10: 090154 | B10: 092000502130 | C10: 78 | D10: 62.3 | E10: 64.5 | F10: 0 | G10: 63.4 | H10: 75.20 | I10: 68.12
A11: 090154 | B11: 092000502718 | C11: 79 | D11: 61.3 | E11: 72 | F11: 0 | G11: 66.65 | H11: 77.20 | I11: 70.87
A12: 090154 | B12: 092000502103 | C12: 80 | D12: 65 | E12: 73 | F12: 0 | G12: 69 | H12: 76.40 | I12: 71.96
A13: 090154 | B13: 092000502415 | C13: 81 | D13: 67.2 | E13: 62 | F13: 0 | G13: 64.6 | H13: 74.20 | I13: 68.44
A14: 090154 | B14: 092000502205 | C14: 82 | D14: 59.3 | E14: 68.5 | F14: 0 | G14: 63.9 | H14: 74.00 | I14: 67.94
A15: 090154 | B15: 092000502325 | C15: 83 | D15: 63.2 | E15: 63 | F15: 0 | G15: 63.1 | H15: 0.00 | I15: 37.86
A16: 090154 | B16: 092000502614 | C16: 84 | D16: 71.8 | E16: 70 | F16: 0 | G16: 70.9 | H16: 79.00 | I16: 74.14
A17: 090154 | B17: 092000502724 | C17: 85 | D17: 59.9 | E17: 67.5 | F17: 0 | G17: 63.7 | H17: 76.00 | I17: 68.62
A18: 090154 | B18: 092000502507 | C18: 86 | D18: 63.8 | E18: 69 | F18: 0 | G18: 66.4 | H18: 77.80 | I18: 70.96
A19: 090154 | B19: 092000502416 | C19: 87 | D19: 64.1 | E19: 63.5 | F19: 0 | G19: 63.8 | H19: 83.20 | I19: 71.56

Sheet 6组
A1: 职位代码 | B1: 准考证号 | C1: 抽签号 | D1: 行测成绩 | E1: 申论成绩 | F1: 专业成绩 | G1: 笔试成绩 | H1: 面试成绩 | I1: 合成成绩
A2: 090155 | B2: 092000502728 | C2: 88 | D2: 64 | E2: 65.5 | F2: 0 | G2: 64.75 | H2: 82.80 | I2: =G2*60%+H2*40% -> 71.97
A3: 090155 | B3: 092000502827 | C3: 89 | D3: 62.7 | E3: 63.5 | F3: 0 | G3: 63.1 | H3: 76.20 | I3: =G3*60%+H3*40% -> 68.34
A4: 090155 | B4: 092000503010 | C4: 90 | D4: 62.8 | E4: 60 | F4: 0 | G4: 61.4 | H4: 73.20 | I4: 66.12
A5: 090155 | B5: 092000502908 | C5: 91 | D5: 55.6 | E5: 68.5 | F5: 0 | G5: 62.05 | H5: 76.00 | I5: 67.63
A6: 090155 | B6: 092000502922 | C6: 92 | D6: 61.3 | E6: 70 | F6: 0 | G6: 65.65 | H6: 80.20 | I6: 71.47
A7: 090155 | B7: 092000503005 | C7: 93 | D7: 51.9 | E7: 72 | F7: 0 | G7: 61.95 | H7: 0.00 | I7: 37.17
A8: 090155 | B8: 092000503023 | C8: 94 | D8: 59.3 | E8: 65.5 | F8: 0 | G8: 62.4 | H8: 75.00 | I8: 67.44
A9: 090155 | B9: 092000502811 | C9: 95 | D9: 62.2 | E9: 72 | F9: 0 | G9: 67.1 | H9: 81.20 | I9: 72.74
A10: 090155 | B10: 092000502820 | C10: 96 | D10: 66.5 | E10: 59 | F10: 0 | G10: 62.75 | H10: 53.20 | I10: 58.93
A11: 090155 | B11: 092000502927 | C11: 97 | D11: 54.9 | E11: 67.5 | F11: 0 | G11: 61.2 | H11: 74.60 | I11: 66.56
A12: 090155 | B12: 092000502806 | C12: 98 | D12: 65.2 | E12: 57 | F12: 0 | G12: 61.1 | H12: 74.20 | I12: 66.34
A13: 090155 | B13: 092000503003 | C13: 99 | D13: 66.3 | E13: 60.5 | F13: 0 | G13: 63.4 | H13: 78.20 | I13: 69.32
A14: 090155 | B14: 092000502803 | C14: 100 | D14: 69.5 | E14: 65.5 | F14: 0 | G14: 67.5 | H14: 84.20 | I14: 74.18
A15: 090155 | B15: 092000503030 | C15: 101 | D15: 67.8 | E15: 72.5 | F15: 0 | G15: 70.15 | H15: 80.00 | I15: 74.09
A16: 090155 | B16: 092000502812 | C16: 102 | D16: 66 | E16: 71 | F16: 0 | G16: 68.5 | H16: 81.80 | I16: 73.82
A17: 090155 | B17: 092000502930 | C17: 103 | D17: 63.6 | E17: 75 | F17: 0 | G17: 69.3 | H17: 81.80 | I17: 74.30
A18: 090155 | B18: 092000502923 | C18: 104 | D18: 57.8 | E18: 75.5 | F18: 0 | G18: 66.65 | H18: 79.80 | I18: 71.91
A19: 090155 | B19: 092000502901 | C19: 105 | D19: 62.1 | E19: 63.5 | F19: 0 | G19: 62.8 | H19: 76.40 | I19: 68.24

Sheet 7组
A1: 职位代码 | B1: 准考证号 | C1: 抽签号 | D1: 行测成绩 | E1: 申论成绩 | F1: 专业成绩 | G1: 笔试成绩 | H1: 面试成绩 | I1: 合成成绩
A2: 090156 | B2: 092000503925 | C2: 106 | D2: 71.4 | E2: 70.5 | F2: 0 | G2: 70.95 | H2: 76.40 | I2: =G2*60%+H2*40% -> 73.13
A3: 090156 | B3: 092000503708 | C3: 107 | D3: 77.2 | E3: 61.5 | F3: 0 | G3: 69.35 | H3: 80.20 | I3: =G3*60%+H3*40% -> 73.69
A4: 090156 | B4: 092000503823 | C4: 108 | D4: 68.2 | E4: 72 | F4: 0 | G4: 70.1 | H4: 78.60 | I4: 73.50
A5: 090156 | B5: 092000503921 | C5: 109 | D5: 72.2 | E5: 68.5 | F5: 0 | G5: 70.35 | H5: 79.20 | I5: 73.89
A6: 090156 | B6: 092000503118 | C6: 110 | D6: 61.1 | E6: 72 | F6: 0 | G6: 66.55 | H6: 0.00 | I6: 39.93
A7: 090156 | B7: 092000503519 | C7: 111 | D7: 68.5 | E7: 73 | F7: 0 | G7: 70.75 | H7: 81.80 | I7: 75.17
A8: 090156 | B8: 092000503220 | C8: 112 | D8: 68.3 | E8: 74 | F8: 0 | G8: 71.15 | H8: 76.20 | I8: 73.17
A9: 090156 | B9: 092000503505 | C9: 113 | D9: 66.1 | E9: 71.5 | F9: 0 | G9: 68.8 | H9: 75.00 | I9: 71.28
A10: 090156 | B10: 092000503125 | C10: 114 | D10: 71.8 | E10: 71 | F10: 0 | G10: 71.4 | H10: 75.20 | I10: 72.92
A11: 090156 | B11: 092000503928 | C11: 115 | D11: 69.8 | E11: 66 | F11: 0 | G11: 67.9 | H11: 81.20 | I11: 73.22
A12: 090156 | B12: 092000503824 | C12: 116 | D12: 71.7 | E12: 70.5 | F12: 0 | G12: 71.1 | H12: 77.20 | I12: 73.54
A13: 090156 | B13: 092000504016 | C13: 117 | D13: 71.2 | E13: 68 | F13: 0 | G13: 69.6 | H13: 81.20 | I13: 74.24
A14: 090156 | B14: 092000503701 | C14: 118 | D14: 63.4 | E14: 71.5 | F14: 0 | G14: 67.45 | H14: 75.80 | I14: 70.79
A15: 090156 | B15: 092000503128 | C15: 119 | D15: 65.1 | E15: 68 | F15: 0 | G15: 66.55 | H15: 81.60 | I15: 72.57
A16: 090156 | B16: 092000503418 | C16: 120 | D16: 70.7 | E16: 64.5 | F16: 0 | G16: 67.6 | H16: 79.40 | I16: 72.32
A17: 090156 | B17: 092000503904 | C17: 121 | D17: 63.1 | E17: 71.5 | F17: 0 | G17: 67.3 | H17: 80.00 | I17: 72.38
A18: 090156 | B18: 092000503413 | C18: 122 | D18: 73.5 | E18: 60.5 | F18: 0 | G18: 67 | H18: 75.20 | I18: 70.28
A19: 090156 | B19: 092000503123 | C19: 123 | D19: 72.6 | E19: 64.5 | F19: 0 | G19: 68.55 | H19: 75.80 | I19: 71.45
A20: 090156 | B20: 092000503601 | C20: 124 | D20: 69.3 | E20: 65 | F20: 0 | G20: 67.15 | H20: 78.00 | I20: 71.49

Sheet 8组
A1: 职位代码 | B1: 准考证号 | C1: 抽签号 | D1: 行测成绩 | E1: 申论成绩 | F1: 专业成绩 | G1: 笔试成绩 | H1: 面试成绩 | I1: 合成成绩
A2: 090167 | B2: 092000604719 | C2: 125 | D2: 54.2 | E2: 66.5 | F2: 0 | G2: 60.35 | H2: 80.20 | I2: =G2*60%+H2*40% -> 68.29
A3: 090167 | B3: 092000604804 | C3: 126 | D3: 55.5 | E3: 62.5 | F3: 0 | G3: 59 | H3: 0.00 | I3: =G3*60%+H3*40% -> 35.40
A4: 090167 | B4: 092000604820 | C4: 127 | D4: 52.1 | E4: 59 | F4: 0 | G4: 55.55 | H4: 65.40 | I4: 59.49
A5: 090167 | B5: 092000604725 | C5: 128 | D5: 48 | E5: 66 | F5: 0 | G5: 57 | H5: 77.20 | I5: 65.08
A6: 090167 | B6: 092000604811 | C6: 129 | D6: 58 | E6: 51.5 | F6: 0 | G6: 54.75 | H6: 72.00 | I6: 61.65
A7: 090167 | B7: 092000604817 | C7: 130 | D7: 53.8 | E7: 61 | F7: 0 | G7: 57.4 | H7: 0.00 | I7: 34.44
A8: 090167 | B8: 092000604724 | C8: 131 | D8: 58.6 | E8: 70.5 | F8: 0 | G8: 64.55 | H8: 73.60 | I8: 68.17
A9: 090167 | B9: 092000604720 | C9: 132 | D9: 52.5 | E9: 59 | F9: 0 | G9: 55.75 | H9: 0.00 | I9: 33.45
A10: 090167 | B10: 092000604727 | C10: 133 | D10: 59.2 | E10: 63.5 | F10: 0 | G10: 61.35 | H10: 72.20 | I10: 65.69
A11: 090167 | B11: 092000604802 | C11: 134 | D11: 49.1 | E11: 61.5 | F11: 0 | G11: 55.3 | H11: 0.00 | I11: 33.18
A12: 090167 | B12: 092000604721 | C12: 135 | D12: 58.4 | E12: 63 | F12: 0 | G12: 60.7 | H12: 77.20 | I12: 67.30
A13: 090167 | B13: 092000604726 | C13: 136 | D13: 51.6 | E13: 55 | F13: 0 | G13: 53.3 | H13: 0.00 | I13: 31.98
A14: 090167 | B14: 092000604728 | C14: 137 | D14: 52.8 | E14: 53 | F14: 0 | G14: 52.9 | H14: 0.00 | I14: 31.74
A15: 090167 | B15: 092000604813 | C15: 138 | D15: 59.4 | E15: 61.5 | F15: 0 | G15: 60.45 | H15: 73.00 | I15: 65.47
A16: 090167 | B16: 092000604730 | C16: 139 | D16: 63.3 | E16: 62 | F16: 0 | G16: 62.65 | H16: 74.00 | I16: 67.19
A17: 090167 | B17: 092000604729 | C17: 140 | D17: 61.7 | E17: 60 | F17: 0 | G17: 60.85 | H17: 72.00 | I17: 65.31
A18: 090167 | B18: 092000604722 | C18: 141 | D18: 58.9 | E18: 61 | F18: 0 | G18: 59.95 | H18: 75.80 | I18: 66.29
A19: 090167 | B19: 092000604819 | C19: 142 | D19: 63.2 | E19: 66 | F19: 0 | G19: 64.6 | H19: 0.00 | I19: 38.76

Sheet 9组
A1: 职位代码 | B1: 准考证号 | C1: 抽签号 | D1: 行测成绩 | E1: 申论成绩 | F1: 专业成绩 | G1: 笔试成绩 | H1: 面试成绩 | I1: 合成成绩
A2: 090168 | B2: 092000604919 | C2: 143 | D2: 69.8 | E2: 62 | F2: 0 | G2: 65.9 | H2: 81.00 | I2: =G2*60%+H2*40% -> 71.94
A3: 090168 | B3: 092000604921 | C3: 144 | D3: 45.6 | E3: 55.5 | F3: 0 | G3: 50.55 | H3: 0.00 | I3: =G3*60%+H3*40% -> 30.33
A4: 090168 | B4: 092000604925 | C4: 145 | D4: 41.3 | E4: 53.5 | F4: 0 | G4: 47.4 | H4: 0.00 | I4: 28.44
A5: 090168 | B5: 092000604824 | C5: 146 | D5: 64.4 | E5: 63.5 | F5: 0 | G5: 63.95 | H5: 78.80 | I5: 69.89
A6: 090168 | B6: 092000604916 | C6: 147 | D6: 77.5 | E6: 62.5 | F6: 0 | G6: 70 | H6: 77.00 | I6: 72.80
A7: 090168 | B7: 092000604826 | C7: 148 | D7: 61.8 | E7: 68 | F7: 0 | G7: 64.9 | H7: 75.20 | I7: 69.02
A8: 090168 | B8: 092000604928 | C8: 149 | D8: 43.2 | E8: 50.5 | F8: 0 | G8: 46.85 | H8: 0.00 | I8: 28.11
A9: 090168 | B9: 092000604902 | C9: 150 | D9: 44.6 | E9: 63 | F9: 0 | G9: 53.8 | H9: 77.80 | I9: 63.40
A10: 090168 | B10: 092000604929 | C10: 151 | D10: 60.1 | E10: 51 | F10: 0 | G10: 55.55 | H10: 76.00 | I10: 63.73
A11: 090168 | B11: 092000604901 | C11: 152 | D11: 60.4 | E11: 67 | F11: 0 | G11: 63.7 | H11: 82.40 | I11: 71.18
A12: 090168 | B12: 092000604918 | C12: 153 | D12: 57.5 | E12: 63.5 | F12: 0 | G12: 60.5 | H12: 77.60 | I12: 67.34
A13: 090168 | B13: 092000604913 | C13: 154 | D13: 55.7 | E13: 56.5 | F13: 0 | G13: 56.1 | H13: 77.40 | I13: 64.62
A14: 090168 | B14: 092000604823 | C14: 155 | D14: 56.1 | E14: 63.5 | F14: 0 | G14: 59.8 | H14: 76.80 | I14: 66.60
A15: 090168 | B15: 092000604922 | C15: 156 | D15: 56.1 | E15: 64.5 | F15: 0 | G15: 60.3 | H15: 79.80 | I15: 68.10
A16: 090168 | B16: 092000604920 | C16: 157 | D16: 55.5 | E16: 69 | F16: 0 | G16: 62.25 | H16: 77.80 | I16: 68.47
A17: 090168 | B17: 092000604825 | C17: 158 | D17: 52.6 | E17: 64 | F17: 0 | G17: 58.3 | H17: 82.20 | I17: 67.86
A18: 090168 | B18: 092000604914 | C18: 159 | D18: 59.7 | E18: 59 | F18: 0 | G18: 59.35 | H18: 76.60 | I18: 66.25
A19: 090168 | B19: 092000604911 | C19: 160 | D19: 57.3 | E19: 57.5 | F19: 0 | G19: 57.4 | H19: 77.20 | I19: 65.32
